fUST/lending_fUST_20240728
["ID","MTS","AMOUNT","RATE_DAILY","PERIOD"]
[333404033,1722112240332,-867.68,0.00013698,2]
[333404034,1722112240342,-500.0,0.00013698,2]
[333404035,1722112240352,-151.0,0.00013698,2]
[333404036,1722112240362,-210.64439625,0.00013698,2]
[333404037,1722112240372,-500.0,0.00013698,2]
[333404038,1722112240382,-500.0,0.00013698,2]
[333404039,1722112240391,-1445.53,0.00013698,2]
[333404040,1722112240401,-500.0,0.00013698,2]
[333404041,1722112240411,-277.617505,0.00013698,2]
[333404042,1722112240422,-151.0,0.00013698,2]
[333404043,1722112240432,-277.617505,0.00013698,2]
[333404044,1722112240445,-500.0,0.00013698,2]
[333404045,1722112240455,-783.31,0.00013698,2]
[333404046,1722112240466,-500.0,0.00013698,2]
[333404047,1722112240476,-515.71,0.00013698,2]
[333404048,1722112240486,-833.7,0.00013698,2]
[333404049,1722112240496,-500.0,0.00013698,2]
[333404050,1722112240506,-299.87472,0.00013698,2]
[333404051,1722112240518,-1567.75,0.00013698,2]
[333404052,1722112240529,-299.87472,0.00013698,2]
[333404053,1722112240543,-151.0,0.00013698,2]
[333404054,1722112240553,-500.0,0.00013698,2]
[333404055,1722112240563,-607.36,0.00013698,2]
[333404056,1722112240574,-500.0,0.00013698,2]
[333404057,1722112240583,-325.25098328,0.00013698,2]
[333404058,1722112240592,-500.0,0.00013698,2]
[333404059,1722112240602,-538.21,0.00013698,2]
[333404060,1722112240611,-5111.27,0.00013698,2]
[333404061,1722112240621,-718.1,0.00013698,2]
[333404062,1722112240631,-500.0,0.00013698,2]
[333404063,1722112240640,-243.502409,0.00013698,2]
[333404064,1722112240651,-2233.24,0.00013698,2]
[333404065,1722112240661,-500.0,0.00013698,2]
[333404066,1722112240670,-243.502409,0.00013698,2]
[333404067,1722112240680,-151.0,0.00013698,2]
[333404068,1722112240691,-500.0,0.00013698,2]
[333404069,1722112240701,-934.96,0.00013698,2]
[333404070,1722112240712,-500.0,0.00013698,2]
[333404071,1722112240722,-922.82,0.00013698,2]
[333404072,1722112240732,-500.0,0.00013698,2]
[333404073,1722112240743,-500.0,0.00013698,2]
[333404074,1722112240754,-500.0,0.00013698,2]
[333404075,1722112240764,-500.0,0.00013698,2]
[333404076,1722112240774,-500.0,0.00013698,2]
[333404077,1722112240783,-500.0,0.00013698,2]
[333404078,1722112240796,-1238.56,0.00013698,2]
[333404079,1722112240806,-500.0,0.00013698,2]
[333404080,1722112240815,-687.6,0.00013698,2]
[333404081,1722112240826,-151.0,0.00013698,2]
[333404082,1722112240835,-500.0,0.00013698,2]
[333404083,1722112240845,-500.0,0.00013698,2]
[333404084,1722112240855,-500.0,0.00013698,2]
[333404085,1722112240864,-815.77,0.00013698,2]
[333404086,1722112240874,-151.0,0.00013698,2]
[333404087,1722112240884,-180.648016,0.00013698,2]
[333404088,1722112240893,-500.0,0.00013698,2]
[333404089,1722112240903,-500.0,0.00013698,2]
[333404090,1722112240913,-500.0,0.00013698,2]
[333404091,1722112240923,-500.0,0.00013698,2]
[333404092,1722112240932,-736.55,0.00013698,2]
[333404093,1722112240942,-571.71,0.00013698,2]
[333404094,1722112240951,-151.0,0.00013698,2]
[333404095,1722112240961,-2370.69,0.00013698,2]
[333404096,1722112240971,-3931.42,0.00013698,2]
[333404097,1722112240981,-802.62,0.00013698,2]
[333404098,1722112240991,-527.8144405,0.00013698,2]
[333404099,1722112241000,-500.0,0.00013698,2]
[333404100,1722112241009,-169.034226,0.00013698,2]
[333404101,1722112241020,-169.034226,0.00013698,2]
[333404102,1722112241030,-1535.89,0.00013698,2]
[333404103,1722112241044,-169.034226,0.00013698,2]
[333404104,1722112241053,-169.034226,0.00013698,2]
[333404105,1722112241063,-929.01,0.00013698,2]
[333404106,1722112241072,-832.2,0.00013698,2]
[333404107,1722112241082,-151.0,0.00013698,2]
[333404108,1722112241092,-151.0,0.00013698,2]
[333404109,1722112241102,-834.31,0.00013698,2]
[333404110,1722112241111,-705.3,0.00013698,2]
[333404111,1722112241122,-500.0,0.00013698,2]
[333404112,1722112241131,-513.5,0.00013698,2]
[333404113,1722112241142,-500.0,0.00013698,2]
[333404114,1722112241152,-500.0,0.00013698,2]
[333404115,1722112241162,-997.56,0.00013698,2]
[333404116,1722112241171,-691.26,0.00013698,2]
[333404117,1722112241180,-729.01,0.00013698,2]
[333404118,1722112241190,-670.23,0.00013698,2]
[333404119,1722112241200,-500.0,0.00013698,2]
[333404120,1722112241209,-1124.69,0.00013698,2]
[333404121,1722112241219,-151.0,0.00013698,2]
[333404122,1722112241229,-500.0,0.00013698,2]
[333404124,1722112241238,-500.0,0.00013698,2]
[333404126,1722112241248,-428.49485585,0.00013698,2]
[333404127,1722112241258,-838.77,0.00013698,2]
[333404128,1722112241267,-503.72006232,0.00013698,2]
[333404165,1722112241666,-212.22993768,0.00013698,2]
[333404167,1722112241676,-151.0,0.00013698,2]
[333404169,1722112241685,-151.0,0.00013698,2]
[333404171,1722112241695,-500.0,0.00013698,2]
[333404173,1722112241705,-151.0,0.00013698,2]
[333404175,1722112241715,-151.0,0.00013698,2]
[333404177,1722112241725,-151.0,0.00013698,2]
[333404179,1722112241735,-151.0,0.00013698,2]
[333404181,1722112241744,-182.501051,0.00013698,2]
[333404183,1722112241754,-1858.01,0.00013698,2]
[333404185,1722112241763,-363.87863501,0.00013698,2]
[333404187,1722112241773,-206.251689,0.00013698,2]
[333404189,1722112241783,-206.251689,0.00013698,2]
[333404191,1722112241798,-151.0,0.00013698,2]
[333404193,1722112241808,-500.0,0.00013698,2]
[333404195,1722112241818,-500.0,0.00013698,2]
[333404197,1722112241828,-500.0,0.00013698,2]
[333404199,1722112241838,-434.25523478,0.00013698,2]
[333404201,1722112241847,-500.0,0.00013698,2]
[333404203,1722112241858,-500.0,0.00013698,2]
[333404205,1722112241868,-500.0,0.00013698,2]
[333404207,1722112241877,-557.03807677,0.00013698,2]
[333404209,1722112241887,-500.0,0.00013698,2]
[333404211,1722112241897,-500.0,0.00013698,2]
[333404212,1722112241906,-500.0,0.00013698,2]
[333404214,1722112241916,-500.0,0.00013698,2]
[333404215,1722112241926,-500.0,0.00013698,2]
[333404217,1722112241936,-206.251689,0.00013698,2]
[333404219,1722112241946,-461.02448327,0.00013698,2]
[333404221,1722112241955,-500.0,0.00013698,2]
[333404223,1722112241966,-206.251689,0.00013698,2]
[333404224,1722112241975,-500.0,0.00013698,2]
[333404225,1722112241985,-500.0,0.00013698,2]
[333404226,1722112241994,-500.0,0.00013698,2]
[333404227,1722112242003,-1082.43,0.00013698,2]
[333404228,1722112242014,-500.0,0.00013698,2]
[333404229,1722112242023,-203.45913774,0.00013698,2]
[333404230,1722112242033,-157.76078128,0.00013698,2]
[333404231,1722112242046,-500.0,0.00013698,2]
[333404232,1722112242056,-759.29,0.00013698,2]
[333404233,1722112242066,-248.579852,0.00013699,2]
[333404234,1722112242076,-151.0,0.00013699,2]
[333404235,1722112242086,-1133.15755306,0.00013727,2]
[333404236,1722112242095,-1133.15755306,0.00013772,2]
[333404237,1722112242105,-1865.79783083,0.00013772,2]
[333404238,1722112242114,-3463.73639455,0.00013862,5]
[333404239,1722112242124,-17708.77420399,0.00013862,2]
[333404240,1722112242139,-26869.08442521,0.00013862,2]
[333404241,1722112242149,-176.710719,0.00013872,2]
[333404242,1722112242158,-151.0,0.00013872,2]
[333404243,1722112242169,-151.0,0.00013872,2]
[333404244,1722112242179,-514.30512,0.00013872,2]
[333404245,1722112242189,-151.0,0.00013872,2]
[333404246,1722112242198,-151.0,0.00013872,2]
[333404247,1722112242208,-514.30512,0.00013872,2]
[333404248,1722112242218,-151.0,0.00013872,2]
[333404249,1722112242229,-155.80642,0.00013872,2]
[333404250,1722112242238,-151.0,0.00013872,2]
[333404251,1722112242248,-277.617505,0.00013872,2]
[333404252,1722112242257,-151.0,0.00013872,2]
[333404253,1722112242267,-277.617505,0.00013872,2]
[333404254,1722112242276,-299.87472,0.00013872,2]
[333404255,1722112242288,-299.87472,0.00013872,2]
[333404256,1722112242300,-151.0,0.00013872,2]
[333404257,1722112242309,-243.502409,0.00013872,2]
[333404258,1722112242318,-243.502409,0.00013872,2]
[333404259,1722112242329,-151.0,0.00013872,2]
[333404260,1722112242339,-151.0,0.00013872,2]
[333404261,1722112242349,-151.0,0.00013872,2]
[333404262,1722112242359,-290.146662,0.00013872,2]
[333404263,1722112242368,-169.034226,0.00013872,2]
[333404264,1722112242378,-169.034226,0.00013872,2]
[333404265,1722112242387,-169.034226,0.00013872,2]
[333404266,1722112242398,-169.034226,0.00013872,2]
[333404267,1722112242408,-151.0,0.00013872,2]
[333404268,1722112242419,-151.0,0.00013872,2]
[333404269,1722112242434,-151.0,0.00013872,2]
[333404270,1722112242443,-151.0,0.00013872,2]
[333404271,1722112242453,-151.0,0.00013872,2]
[333404272,1722112242463,-151.0,0.00013872,2]
[333404273,1722112242473,-206.251689,0.00013872,2]
[333404274,1722112242482,-206.251689,0.00013872,2]
[333404275,1722112242492,-206.251689,0.00013872,2]
[333404276,1722112242501,-206.251689,0.00013872,2]
[333404277,1722112242513,-55769.09188579,0.00013872,2]
[333404278,1722112242532,-33118.90811421,0.00013872,2]
[333404279,1722112242547,-1155.63749065,0.00013872,2]
[333404280,1722112242557,-1409.0,0.00013943,2]
[333404281,1722112242567,-22288.9293146,0.00013962,2]
[333404282,1722112242576,-500.0,0.00013972,2]
[333404283,1722112242586,-500.0,0.00013972,2]
[333404284,1722112242596,-700.92,0.00013972,2]
[333404285,1722112242607,-500.0,0.00013972,2]
[333404286,1722112242617,-500.0,0.00013972,2]
[333404287,1722112242627,-500.0,0.00013972,2]
[333404288,1722112242636,-500.0,0.00013972,2]
[333404289,1722112242645,-500.0,0.00013972,2]
[333404290,1722112242655,-500.0,0.00013972,2]
[333404291,1722112242664,-500.0,0.00013972,2]
[333404292,1722112242673,-532.74,0.00013972,2]
[333404293,1722112242684,-568.04,0.00013972,2]
[333404294,1722112242694,-500.0,0.00013972,2]
[333404295,1722112242703,-500.0,0.00013972,2]
[333404296,1722112242712,-500.0,0.00013972,2]
[333404297,1722112242722,-500.0,0.00013972,2]
[333404298,1722112242731,-500.0,0.00013972,2]
[333404299,1722112242741,-500.0,0.00013972,2]
[333404300,1722112242751,-500.0,0.00013972,2]
[333404301,1722112242760,-544.9,0.00013972,2]
[333404302,1722112242770,-760.05,0.00013972,2]
[333404303,1722112242779,-500.0,0.00013972,2]
[333404306,1722112242922,-500.0,0.00013972,2]
[333404307,1722112242932,-500.0,0.00013972,2]
[333404310,1722112242942,-520.7,0.00013972,2]
[333404312,1722112242952,-638.54,0.00013972,2]
[333404314,1722112242962,-770.97,0.00013972,2]
[333404316,1722112242972,-374.71830591,0.00013972,2]
[333404317,1722112242982,-527.76,0.00013972,2]
[333404319,1722112242991,-500.0,0.00013972,2]
[333404321,1722112243000,-500.53,0.00013972,2]
[333404323,1722112243010,-500.0,0.00013972,2]
[333404325,1722112243019,-500.0,0.00013972,2]
[333404327,1722112243028,-500.0,0.00013972,2]
[333404329,1722112243042,-514.30512,0.00013972,2]
[333404331,1722112243052,-151.0,0.00013972,2]
[333404333,1722112243062,-151.0,0.00013972,2]
[333404335,1722112243072,-514.30512,0.00013972,2]
[333404337,1722112243082,-151.0,0.00013972,2]
[333404339,1722112243091,-890.33,0.00013972,2]
[333404341,1722112243101,-2957.65,0.00013972,2]
[333404343,1722112243111,-867.68,0.00013972,2]
[333404346,1722112243121,-585.69857518,0.00013972,2]
[333404349,1722112243131,-151.0,0.00013972,2]
[333404350,1722112243140,-500.0,0.00013972,2]
[333404352,1722112243149,-1445.53,0.00013972,2]
[333404354,1722112243159,-500.0,0.00013972,2]
[333404355,1722112243168,-277.617505,0.00013972,2]
[333404356,1722112243178,-151.0,0.00013972,2]
[333404357,1722112243188,-277.617505,0.00013972,2]
[333404358,1722112243198,-500.0,0.00013972,2]
[333404359,1722112243207,-783.31,0.00013972,2]
[333404361,1722112243217,-500.0,0.00013972,2]
[333404363,1722112243227,-833.7,0.00013972,2]
[333404365,1722112243236,-500.0,0.00013972,2]
[333404367,1722112243247,-299.87472,0.00013972,2]
[333404369,1722112243257,-1567.75,0.00013972,2]
[333404372,1722112243267,-299.87472,0.00013972,2]
[333404374,1722112243277,-500.0,0.00013972,2]
[333404375,1722112243286,-151.0,0.00013972,2]
[333404378,1722112243299,-607.36,0.00013972,2]
[333404382,1722112243309,-500.0,0.00013972,2]
[333404386,1722112243318,-500.0,0.00013972,2]
[333404388,1722112243328,-538.21,0.00013972,2]
[333404391,1722112243338,-5111.27,0.00013972,2]
[333404392,1722112243348,-718.1,0.00013972,2]
[333404393,1722112243359,-243.502409,0.00013972,2]
[333404396,1722112243369,-2233.24,0.00013972,2]
[333404397,1722112243379,-243.502409,0.00013972,2]
[333404398,1722112243388,-151.0,0.00013972,2]
[333404399,1722112243398,-500.0,0.00013972,2]
[333404400,1722112243408,-934.96,0.00013972,2]
[333404401,1722112243419,-922.82,0.00013972,2]
[333404403,1722112243431,-500.0,0.00013972,2]
[333404404,1722112243445,-500.0,0.00013972,2]
[333404405,1722112243455,-500.0,0.00013972,2]
[333404406,1722112243465,-500.0,0.00013972,2]
[333404407,1722112243475,-1238.56,0.00013972,2]
[333404408,1722112243486,-500.0,0.00013972,2]
[333404410,1722112243498,-687.6,0.00013972,2]
[333404412,1722112243507,-500.0,0.00013972,2]
[333404413,1722112243519,-500.0,0.00013972,2]
[333404414,1722112243529,-500.0,0.00013972,2]
[333404415,1722112243544,-815.77,0.00013972,2]
[333404416,1722112243554,-151.0,0.00013972,2]
[333404417,1722112243564,-500.0,0.00013972,2]
[333404418,1722112243574,-500.0,0.00013972,2]
[333404419,1722112243584,-736.55,0.00013972,2]
[333404420,1722112243594,-571.71,0.00013972,2]
[333404421,1722112243603,-2370.69,0.00013972,2]
[333404423,1722112243613,-3931.42,0.00013972,2]
[333404425,1722112243622,-802.62,0.00013972,2]
[333404427,1722112243632,-169.034226,0.00013972,2]
[333404428,1722112243642,-1535.89,0.00013972,2]
[333404429,1722112243652,-169.034226,0.00013972,2]
[333404430,1722112243661,-929.01,0.00013972,2]
[333404432,1722112243671,-832.2,0.00013972,2]
[333404433,1722112243681,-834.31,0.00013972,2]
[333404434,1722112243690,-705.3,0.00013972,2]
[333404435,1722112243700,-500.0,0.00013972,2]
[333404436,1722112243710,-513.5,0.00013972,2]
[333404437,1722112243720,-500.0,0.00013972,2]
[333404438,1722112243729,-213.59854045,0.00013972,2]
[333404439,1722112243738,-997.56,0.00013972,2]
[333404440,1722112243748,-691.26,0.00013972,2]
[333404441,1722112243758,-729.01,0.00013972,2]
[333404442,1722112243767,-670.23,0.00013972,2]
[333404443,1722112243777,-500.0,0.00013972,2]
[333404444,1722112243788,-1124.69,0.00013972,2]
[333404445,1722112243802,-838.77,0.00013972,2]
[333404446,1722112243812,-715.95,0.00013972,2]
[333404447,1722112243822,-151.0,0.00013972,2]
[333404448,1722112243832,-500.0,0.00013972,2]
[333404449,1722112243842,-151.0,0.00013972,2]
[333404450,1722112243851,-271.164188,0.00013972,2]
[333404451,1722112243860,-1858.01,0.00013972,2]
[333404452,1722112243870,-206.251689,0.00013972,2]
[333404453,1722112243879,-500.0,0.00013972,2]
[333404454,1722112243889,-1082.43,0.00013972,2]
[333404455,1722112243899,-206.251689,0.00013972,2]
[333404456,1722112243908,-759.29,0.00013972,2]
[333404457,1722112243918,-1091.00549478,0.00014,2]
[333404458,1722112243928,-22288.9293146,0.00014016,2]
[333404459,1722112243938,-169.812165,0.00014026,2]
[333404460,1722112243948,-169.812165,0.00014026,2]
[333404461,1722112243958,-286.82483,0.00014026,2]
[333404462,1722112243967,-151.0,0.00014036,2]
[333404463,1722112243977,-151.0,0.00014036,2]
[333404464,1722112243986,-151.0,0.00014036,2]
[333404465,1722112243996,-151.0,0.00014036,2]
[333404466,1722112244007,-151.0,0.00014036,2]
[333404467,1722112244016,-151.0,0.00014036,2]
[333404468,1722112244026,-151.0,0.00014036,2]
[333404469,1722112244036,-151.0,0.00014036,2]
[333404470,1722112244049,-277.617505,0.00014036,2]
[333404471,1722112244059,-151.0,0.00014036,2]
[333404472,1722112244068,-277.617505,0.00014036,2]
[333404473,1722112244078,-299.87472,0.00014036,2]
[333404474,1722112244087,-299.87472,0.00014036,2]
[333404475,1722112244096,-151.0,0.00014036,2]
[333404476,1722112244106,-243.502409,0.00014036,2]
[333404477,1722112244115,-243.502409,0.00014036,2]
[333404478,1722112244125,-151.0,0.00014036,2]
[333404479,1722112244134,-169.034226,0.00014036,2]
[333404480,1722112244143,-169.034226,0.00014036,2]
[333404481,1722112244153,-514.30512,0.00014236,2]
[333404482,1722112244162,-151.0,0.00014236,2]
[333404483,1722112244172,-151.0,0.00014236,2]
[333404484,1722112244182,-514.30512,0.00014236,2]
[333404485,1722112244191,-151.0,0.00014236,2]
[333404486,1722112244201,-151.0,0.00014236,2]
[333404487,1722112244210,-206.251689,0.00014236,2]
[333404488,1722112244219,-206.251689,0.00014236,2]
[333404489,1722112244230,-22288.9293146,0.00014236,2]
[333404490,1722112244239,-500.0,0.00014246,2]
[333404491,1722112244249,-700.92,0.00014246,2]
[333404492,1722112244258,-500.0,0.00014246,2]
[333404493,1722112244267,-500.0,0.00014246,2]
[333404494,1722112244276,-151.0,0.00014246,2]
[333404495,1722112244286,-500.0,0.00014246,2]
[333404496,1722112244299,-500.0,0.00014246,2]
[333404497,1722112244308,-242.953604,0.00014246,2]
[333404498,1722112244318,-500.0,0.00014246,2]
[333404499,1722112244328,-532.74,0.00014246,2]
[333404500,1722112244337,-151.0,0.00014246,2]
[333404501,1722112244346,-568.04,0.00014246,2]
[333404502,1722112244355,-500.0,0.00014246,2]
[333404503,1722112244365,-500.0,0.00014246,2]
[333404504,1722112244374,-500.0,0.00014246,2]
[333404505,1722112244384,-544.9,0.00014246,2]
[333404506,1722112244393,-760.05,0.00014246,2]
[333404507,1722112244403,-169.812165,0.00014246,2]
[333404508,1722112244412,-169.812165,0.00014246,2]
[333404509,1722112244422,-169.812165,0.00014246,2]
[333404510,1722112244434,-169.812165,0.00014246,2]
[333404511,1722112244444,-520.7,0.00014246,2]
[333404512,1722112244453,-199.6743679,0.00014246,2]
[333404513,1722112244469,-438.8656321,0.00014246,2]
[333404514,1722112244478,-770.97,0.00014246,2]
[333404515,1722112244488,-104.5643679,0.00014246,2]
[333404516,1722112244500,-395.4356321,0.00014246,2]
[333404517,1722112244510,-500.53,0.00014246,2]
[333404518,1722112244520,-500.0,0.00014246,2]
[333404519,1722112244530,-500.0,0.00014246,2]
[333404520,1722112244542,-500.0,0.00014246,2]
[333404521,1722112244552,-449.71004234,0.00014246,2]
[333404522,1722112244564,-64.59507766,0.00014246,2]
[333404523,1722112244573,-151.0,0.00014246,2]
[333404524,1722112244583,-151.0,0.00014246,2]
[333404525,1722112244593,-232.62691727,0.00014246,2]
[333404526,1722112244948,-478.21516889,0.00013698,2]
[333404527,1722112244967,-316.51483111,0.00013698,2]
[333404528,1722112244977,-794.73,0.00013972,2]
[333404529,1722112244986,-281.67820273,0.00014246,2]
[333404530,1722112244997,-2957.65,0.00014246,2]
[333404531,1722112245006,-867.68,0.00014246,2]
[333404532,1722112245017,-172.166009,0.00014246,2]
[333404533,1722112245027,-500.0,0.00014246,2]
[333404534,1722112245036,-1445.53,0.00014246,2]
[333404535,1722112245052,-500.0,0.00014246,2]
[333404536,1722112245061,-277.617505,0.00014246,2]
[333404537,1722112245071,-151.0,0.00014246,2]
[333404538,1722112245082,-277.617505,0.00014246,2]
[333404539,1722112245092,-500.0,0.00014246,2]
[333404540,1722112245102,-783.31,0.00014246,2]
[333404541,1722112245112,-500.0,0.00014246,2]
[333404542,1722112245122,-833.7,0.00014246,2]
[333404543,1722112245132,-500.0,0.00014246,2]
[333404544,1722112245142,-299.87472,0.00014246,2]
[333404545,1722112245152,-1567.75,0.00014246,2]
[333404546,1722112245163,-299.87472,0.00014246,2]
[333404547,1722112245173,-500.0,0.00014246,2]
[333404548,1722112245183,-151.0,0.00014246,2]
[333404549,1722112245193,-607.36,0.00014246,2]
[333404550,1722112245203,-500.0,0.00014246,2]
[333404551,1722112245214,-500.0,0.00014246,2]
[333404552,1722112245224,-538.21,0.00014246,2]
[333404553,1722112245233,-5111.27,0.00014246,2]
[333404554,1722112245243,-718.1,0.00014246,2]
[333404555,1722112245253,-243.502409,0.00014246,2]
[333404556,1722112245264,-2233.24,0.00014246,2]
[333404557,1722112245274,-243.502409,0.00014246,2]
[333404558,1722112245283,-500.0,0.00014246,2]
[333404559,1722112245302,-934.96,0.00014246,2]
[333404560,1722112245313,-922.82,0.00014246,2]
[333404561,1722112245323,-500.0,0.00014246,2]
[333404562,1722112245332,-500.0,0.00014246,2]
[333404563,1722112245342,-463.53669668,0.00014246,2]
[333404564,1722112245352,-1238.56,0.00014246,2]
[333404565,1722112245362,-500.0,0.00014246,2]
[333404566,1722112245371,-687.6,0.00014246,2]
[333404567,1722112245381,-500.0,0.00014246,2]
[333404568,1722112245391,-500.0,0.00014246,2]
[333404569,1722112245400,-500.0,0.00014246,2]
[333404570,1722112245410,-815.77,0.00014246,2]
[333404571,1722112245421,-151.0,0.00014246,2]
[333404572,1722112245430,-500.0,0.00014246,2]
[333404573,1722112245442,-500.0,0.00014246,2]
[333404574,1722112245452,-736.55,0.00014246,2]
[333404575,1722112245462,-571.71,0.00014246,2]
[333404576,1722112245473,-2370.69,0.00014246,2]
[333404577,1722112245482,-3931.42,0.00014246,2]
[333404578,1722112245491,-802.62,0.00014246,2]
[333404579,1722112245501,-1535.89,0.00014246,2]
[333404580,1722112245513,-169.034226,0.00014246,2]
[333404581,1722112245524,-169.034226,0.00014246,2]
[333404582,1722112245535,-929.01,0.00014246,2]
[333404583,1722112245548,-832.2,0.00014246,2]
[333404584,1722112245557,-834.31,0.00014246,2]
[333404585,1722112245566,-705.3,0.00014246,2]
[333404586,1722112245576,-500.0,0.00014246,2]
[333404587,1722112245585,-513.5,0.00014246,2]
[333404588,1722112245594,-500.0,0.00014246,2]
[333404589,1722112245604,-997.56,0.00014246,2]
[333404590,1722112245614,-691.26,0.00014246,2]
[333404591,1722112245623,-729.01,0.00014246,2]
[333404592,1722112245633,-670.23,0.00014246,2]
[333404593,1722112245643,-500.0,0.00014246,2]
[333404594,1722112245652,-1124.69,0.00014246,2]
[333404595,1722112245663,-838.77,0.00014246,2]
[333404596,1722112245673,-715.95,0.00014246,2]
[333404597,1722112245682,-151.0,0.00014246,2]
[333404598,1722112245692,-500.0,0.00014246,2]
[333404599,1722112245703,-262.79436,0.00014246,2]
[333404600,1722112245713,-1858.01,0.00014246,2]
[333404601,1722112245722,-206.251689,0.00014246,2]
[333404602,1722112245732,-500.0,0.00014246,2]
[333404603,1722112245742,-1082.43,0.00014246,2]
[333404604,1722112245751,-206.251689,0.00014246,2]
[333404605,1722112245761,-759.29,0.00014246,2]
[333404606,1722112245771,-794.73,0.00014246,2]
[333404607,1722112245781,-750.0,0.00014247,2]
[333404608,1722112245795,-156.5036239,0.00014355,2]
[333404609,1722112245804,-620.00485297,0.00014415,2]
[333404610,1722112245814,-500.0,0.0001452,2]
[333404611,1722112245824,-700.92,0.0001452,2]
[333404612,1722112245834,-500.0,0.0001452,2]
[333404613,1722112245846,-500.0,0.0001452,2]
[333404614,1722112245856,-151.0,0.0001452,2]
[333404616,1722112245866,-500.0,0.0001452,2]
[333404618,1722112245875,-500.0,0.0001452,2]
[333404620,1722112245884,-500.0,0.0001452,2]
[333404621,1722112245894,-532.74,0.0001452,2]
[333404622,1722112245903,-151.0,0.0001452,2]
[333404623,1722112245913,-568.04,0.0001452,2]
[333404625,1722112245922,-500.0,0.0001452,2]
[333404626,1722112245932,-500.0,0.0001452,2]
[333404628,1722112245942,-500.0,0.0001452,2]
[333404630,1722112245951,-544.9,0.0001452,2]
[333404632,1722112245961,-760.05,0.0001452,2]
[333404634,1722112245971,-169.812165,0.0001452,2]
[333404635,1722112245981,-169.812165,0.0001452,2]
[333404636,1722112245991,-520.7,0.0001452,2]
[333404637,1722112246000,-638.54,0.0001452,2]
[333404638,1722112246010,-770.97,0.0001452,2]
[333404639,1722112246019,-514.15,0.0001452,2]
[333404640,1722112246029,-500.53,0.0001452,2]
[333404641,1722112246044,-500.0,0.0001452,2]
[333404642,1722112246055,-500.0,0.0001452,2]
[333404643,1722112246065,-500.0,0.0001452,2]
[333404644,1722112246075,-514.30512,0.0001452,2]
[333404645,1722112246085,-151.0,0.0001452,2]
[333404646,1722112246095,-151.0,0.0001452,2]
[333404647,1722112246105,-514.30512,0.0001452,2]
[333404648,1722112246115,-2957.65,0.0001452,2]
[333404649,1722112246314,-867.68,0.0001452,2]
[333404650,1722112246324,-500.0,0.0001452,2]
[333404651,1722112246334,-1445.53,0.0001452,2]
[333404652,1722112246343,-500.0,0.0001452,2]
[333404653,1722112246353,-277.617505,0.0001452,2]
[333404654,1722112246363,-151.0,0.0001452,2]
[333404655,1722112246372,-277.617505,0.0001452,2]
[333404656,1722112246382,-500.0,0.0001452,2]
[333404657,1722112246391,-783.31,0.0001452,2]
[333404658,1722112246402,-500.0,0.0001452,2]
[333404659,1722112246413,-833.7,0.0001452,2]
[333404660,1722112246423,-500.0,0.0001452,2]